Cogmind - Beta 15 @@@ ROGUE MODE // 2025.07.03 @ 14:03:45 Player: btrs Result: Destroyed by 9O-0QZ(R) with Subdweller Beam Cannon Performance ------------- Evolutions (0) 0 Regions Visited (2) 400 Robots Destroyed (26) 130 Value Destroyed (596) 596 Prototype IDs (2) 40 Alien Tech Used (0) 0 Bonus (0) 0 TOTAL SCORE: 1166 Bonus ------- None Cogmind --------- Core Integrity 0/250 Matter 300/300 Energy 227/250 System Corruption 0% Temperature Warning (311) Movement Rolling (135) Ox3 Location -10/Subcaves Parts ------- > --- POWER (1) -------- Ion Engine > --- PROPULSION (2) --- Wheel Compact Wheel > --- UTILITY (2) ------ Heat Sink Huge Storage Unit > --- WEAPON (2) ------- Spread Laser Spread Laser > --- INVENTORY (25) --- Ion Engine Ion Engine Light Ion Engine Light Ion Engine Compact Wheel Flight Unit Flight Unit Flight Unit Flight Unit Flight Unit Flight Unit Small Storage Unit Visual Processing Unit Sensor Array Signal Interpreter Medium Laser Spread Laser Spread Laser Light Assault Rifle Light Assault Rifle Light Assault Rifle Light Cannon Plasma Cutter Mace Mace Peak State ------------ > --- POWER ------------ Ion Engine > --- PROPULSION ------- Wheel Compact Wheel > --- UTILITY ---------- Heat Sink Huge Storage Unit > --- WEAPON ----------- Spread Laser Mace > --- INVENTORY -------- Ion Engine Ion Engine Light Ion Engine Light Ion Engine Compact Wheel Flight Unit Flight Unit Flight Unit Flight Unit Flight Unit Flight Unit Small Storage Unit Visual Processing Unit Signal Interpreter Medium Laser Spread Laser Spread Laser Spread Laser Light Assault Rifle Light Assault Rifle Light Assault Rifle Light Cannon Plasma Cutter Mace [Rating: 12] Favorites ----------- Power Ion Engine Engine Ion Engine Propulsion Light Treads Treads Light Treads Wheel Compact Wheel Utility Heat Sink Device Heat Sink Storage Huge Storage Unit Weapon Assault Rifle Energy Gun Medium Laser Ballistic Gun Assault Rifle Ballistic Cannon Light Cannon Impact Weapon Mace Build | -11 -10 -10 ------- Run | Yrd Mat Sub Slots Evolved . | . . . Power . | . . . Propulsion . | . . . Utility . | . . . Weapon . | . . . Parts Attached 25 | 8 17 . Power 4 | 2 2 . Engine 4 | 2 2 . Core . | . . . Reactor . | . . . Propulsion 6 | 2 4 . Treads 2 | 2 . . Leg . | . . . Wheel 4 | . 4 . Hover . | . . . Flight . | . . . Utility 4 | 1 3 . Device 2 | . 2 . Storage 2 | 1 1 . Processor . | . . . Hackware . | . . . Protection . | . . . Artifact . | . . . Weapon 11 | 3 8 . Energy Gun 3 | 1 2 . Energy Cannon . | . . . Ballistic Gun 6 | 2 4 . Ballistic Cannon 1 | . 1 . Launcher . | . . . Special Weapon . | . . . Impact Weapon 1 | . 1 . Slashing Weapon . | . . . Piercing Weapon . | . . . Special Melee Weapon . | . . . Unidentified Prototypes . | . . . Parts Lost 6 | . 6 . Power . | . . . Propulsion 3 | . 3 . Utility 1 | . 1 . Weapon 2 | . 2 . Highest Loss Streak 3 | . 3 . To Critical Strikes . | . . . Average Backups 12 | 1 13 25 Power 2 | . 2 4 Propulsion 3 | . 3 7 Utility 1 | . 2 4 Weapon 4 | . 4 9 Tool/Special . | . . . Unused Backups 18 | . 3 15 Power 1 | . . 1 Propulsion 6 | . . 6 Utility 3 | . . 3 Weapon 7 | . 3 4 Tool/Special 1 | . . 1 Average Slot Usage (%) 94 | . 94 100 Engine 13 | . 13 14 Treads 11 | . 11 . Wheel 15 | . 15 28 Device 10 | . 10 14 Storage 14 | . 14 14 Energy Gun 5 | . 5 28 Ballistic Gun 17 | . 17 . Ballistic Cannon 4 | . 4 . Peak Build Rating 12 | 6 12 12 Average Rating 7 | 4 7 12 On Entrance 6 | . 6 12 Naked Turns . | . . . Heaviest Build 92 | 14 92 92 Greatest Support 40 | 40 40 26 Greatest Overweight (x) 8 | . 8 3 Average Overweight (x) 2 | . 2 3 Largest Inventory Capacity 25 | 8 25 25 Average Capacity 20 | 7 20 25 Most Carried 25 | 2 25 25 Average Carried 12 | 1 13 25 Final Capacity 25 | 8 25 25 Final Carried 25 | 2 25 25 Class Distribution -------------------- 89% | Mutant 10% | Scavenger-Mutant Dominant Class ---------------- Mutant | -10/Materials Mutant | -10/Subcaves Resources | -11 -10 -10 ----------- Run | Yrd Mat Sub Matter Collected 944 | 207 737 . Remotely . | . . . Salvage Created 736 | . 736 . Parts 47 | . 47 . Haulers Intercepted 1 | . 1 . Recyclers Shooed 1 | . 1 . Parts Field Recycled . | . . . Retrieved Matter . | . . . Parts Self-Destructed . | . . . Prevented . | . . . Kills | -11 -10 -10 ------- Run | Yrd Mat Sub Combat Hostiles Destroyed 21 | . 21 . Guns 18 | . 18 . Cannons 3 | . 3 . Classes Destroyed 6 | . 6 . Worker 2 | . 2 . Builder 1 | . 1 . Hauler 1 | . 1 . Watcher 1 | . 1 . Swarmer 8 | . 8 . Grunt 13 | . 13 . Best Kill Streak 5 | . 5 . Combat Bots Only 5 | . 5 . Max Kills in Single Turn 2 | . 2 . Gunslinging . | . . . Exploded . | . . . Melee . | . . . Uniques/NPCs Destroyed . | . . . Combat | -11 -10 -10 -------- Run | Yrd Mat Sub Hostile Shots Fired 113 | . 110 3 Missed 24 | . 24 . Hits 89 | . 86 3 Projectile 89 | . 86 3 Critical Strikes 1 | . . 1 Damage Taken 1002 | . 918 84 Core 252 | . 198 54 Absorbed by Shields . | . . . Core Remaining (%) 100 | 100 . . Volleys Fired 85 | . 84 1 Largest 2 | . 2 2 Hottest 130 | . 130 130 Shots Fired 169 | . 167 2 Gun 145 | . 143 2 Cannon 24 | . 24 . Launcher . | . . . Special . | . . . Kinetic 146 | . 146 . Thermal 23 | . 21 2 Explosive . | . . . Electromagnetic . | . . . Robot Hit Streak 12 | . 12 4 Robot Miss Streak 6 | . 6 4 Penetration Max . | . . . Secondary Targets . | . . . Shots Hit Robots 106 | . 104 2 Core Hits 49 | . 48 1 Critical Kills . | . . . Critical Parts Destroyed . | . . . Critical Strikes 1 | . 1 . Burn 1 | . 1 . Melee Attacks 4 | . 4 . Impact 4 | . 4 . Slashing . | . . . Piercing . | . . . Sneak Attacks . | . . . Combat Hostiles . | . . . Follow-up Attacks . | . . . Damage Inflicted 1388 | . 1354 34 Guns 1142 | . 1108 34 Cannons 230 | . 230 . Explosions . | . . . Melee . | . . . Ramming 16 | . 16 . Kinetic 1112 | . 1112 . Thermal 260 | . 226 34 Explosive . | . . . Electromagnetic . | . . . Impact . | . . . Slashing . | . . . Piercing . | . . . Highest Corruption . | . . . Average Corruption . | . . . Corruption Purged . | . . . Corruption Blocked . | . . . Overload Shots . | . . . Overflow Damage . | . . . Projectiles . | . . . Explosions . | . . . Melee . | . . . Knockbacks 7 | . 7 . Impact . | . . . Kinetic 5 | . 5 . Secondary 2 | . 2 . Self-Inflicted Damage 4 | . 4 . Shots . | . . . Rammed 3 | . 3 . Targets Rammed 3 | . 3 . Kicked . | . . . Crushed . | . . . Highest Temperature 302 | . 81 302 Average Temperature 31 | . 27 302 Received Heat Transfer 684 | . 366 318 Siege Activations . | . . . Martial Activations . | . . . Shielding Activations . | . . . Robots Disrupted . | . . . Combat Hostiles . | . . . Robots Corrupted . | . . . Combat Hostiles . | . . . Parts Fried . | . . . Impact Corruptions . | . . . Robots Melted . | . . . Combat Hostiles . | . . . Parts Melted . | . . . Heat Transferred 609 | . 569 40 Parts Sabotaged . | . . . Parts Stolen . | . . . Parts Stripped . | . . . Power Chain Reactions . | . . . Alert | -11 -10 -10 ------- Run | Yrd Mat Sub Maximum Alert Level . | . . . Low Security (%) 100 | 100 100 . Level 1 . | . . . Level 2 . | . . . Level 3 . | . . . Level 4 . | . . . Level 5 . | . . . High Security . | . . . Max Security . | . . . Peak Influence 145 | . 145 . Initial . | . . . Average 59 | . 62 . Influence Increases 655 | . 655 . Destroy 0b10 Robot/C 420 | . 420 . Destroy 0b10 Robot/NC 25 | . 25 . Destroy Leader 104 | . 104 . Successful Hack 10 | . 10 . Disable Machine 15 | . 15 . Destroy Structure 6 | . 6 . Lose Combat Pursuer 75 | . 75 . Influence Decreases 584 | . 518 66 Entered New Map 66 | . . 66 Time Decay 458 | . 458 . Lost Part 60 | . 60 . Squads Dispatched 4 | . 4 . Investigation 4 | . 4 . Extermination . | . . . Reinforcement . | . . . Assault . | . . . Garrison . | . . . Intercept . | . . . Searches Triggered . | . . . Construction Impeded . | . . . Haulers Reinforced . | . . . Active Scanning Responses . | . . . Cargo Convoy Interrupts . | . . . Stealth | -11 -10 -10 --------- Run | Yrd Mat Sub Distress Signals 4 | . 4 . Communications Jammed . | . . . Distress Signals . | . . . Times Spotted 32 | . 30 2 Peak Tracking Total 4 | . 4 2 Tactical Retreats 4 | . 4 . Traps | -11 -10 -10 ------- Run | Yrd Mat Sub Traps Triggered 5 | . 5 . Indirectly . | . . . Trap Hack Attempts . | . . . Triggered . | . . . Disarmed . | . . . Reprogrammed . | . . . Reused . | . . . Traps Extracted . | . . . Installed . | . . . Triggered . | . . . Machines | -11 -10 -10 ---------- Run | Yrd Mat Sub Machines Disabled 1 | . 1 . Max in Single Turn 1 | . 1 . Machines Repaired . | . . . Machines Dismantled . | . . . Machines Sabotaged . | . . . Overloaded Fab Kills . | . . . Hacking | -11 -10 -10 --------- Run | Yrd Mat Sub Machines Accessed 6 | . 6 . Terminals 6 | . 6 . Fabricators . | . . . Repair Stations . | . . . Recycling Units . | . . . Scanalyzers . | . . . Garrison Access . | . . . Total Hacks 18 | . 18 . Successful 7 | . 7 . Failed 11 | . 11 . Catastrophic . | . . . Database Lockouts . | . . . Manual 1 | . 1 . Terminals 18 | . 18 . Fabricators . | . . . Repair Stations . | . . . Recycling Units . | . . . Scanalyzers . | . . . Garrison Access . | . . . Terminal Hacks 7 | . 7 . Record 1 | . 1 . Robot Analysis 1 | . 1 . Prototype ID Bank 1 | . 1 . Recycling Unit Index 1 | . 1 . Locate Traps 1 | . 1 . Zone Layout 2 | . 2 . Fabricator Hacks . | . . . Repair Station Hacks . | . . . Recycling Unit Hacks . | . . . Scanalyzer . | . . . Garrison Access Hacks . | . . . Unauthorized Hacks . | . . . Terminals . | . . . Fabricators . | . . . Repair Stations . | . . . Recycling Units . | . . . Scanalyzers . | . . . Garrison Access . | . . . Data Cores Recovered . | . . . Used . | . . . Hacking Detections 4 | . 4 . Full Trace Events 3 | . 3 . Feedback Events . | . . . Feedback Blocked . | . . . Robot Schematics Acquired . | . . . Robots Built . | . . . Authchips . | . . . Time . | . . . Total Robot Build Rating . | . . . Part Schematics Acquired . | . . . Parts Built . | . . . Authchips . | . . . Time . | . . . Total Part Build Rating . | . . . Parts Repaired . | . . . Time . | . . . Parts Recycled . | . . . Recycled Matter . | . . . Retrieved Matter . | . . . Retrieved Components . | . . . Parts Scanalyzed . | . . . Part Schematics Acquired . | . . . Parts Damaged . | . . . Bothacking | -11 -10 -10 ------------ Run | Yrd Mat Sub Used RIF Installer . | . . . Robots Hacked . | . . . Non-combat . | . . . Combat . | . . . Robot Hacks Applied . | . . . Relay Couplers Released . | . . . Fabnet Peak Effective % . | . . . Robots Rewired . | . . . Allies Hacked . | . . . Hacks Repelled . | . . . Allies | -11 -10 -10 -------- Run | Yrd Mat Sub Total Allies . | . . . Largest Group . | . . . Highest-Rated Group . | . . . Highest-Rated Ally . | . . . Total Orders . | . . . Ally Attacks . | . . . Total Damage . | . . . Kills . | . . . Allies Corrupted . | . . . Allies Melted . | . . . Intel | -11 -10 -10 ------- Run | Yrd Mat Sub Active Infowar (turns) . | . . . Robot Analysis Total 1 | . 1 . Derelict Logs Recovered . | . . . Drone Launches . | . . . Drone Recoveries . | . . . Exploration | -11 -10 -10 ------------- Run | Yrd Mat Sub Turns Passed 1618 | 81 1533 4 Spaces Moved 781 | 46 733 2 Core 4 | 3 1 . Treads 254 | 43 211 . Legs . | . . . Wheels 523 | . 521 2 Hover . | . . . Flight . | . . . Fastest Speed 50 | 50 130 135 Average Speed 157 | 152 157 135 Slowest Speed 320 | 160 320 135 Overloaded Moves . | . . . Propulsion Burnouts . | . . . Robots Hopped . | . . . Potential Cave-ins . | . . . Cave-ins Triggered . | . . . Exploration Rate (%) 29 | 4 82 2 Regions Visited 2 Branch Regions 1 Pre-discovered Areas . | . . . Known Exits Taken . | . . . Unknown Exits Taken 2 | 1 1 . Scrap Searched . | . . . Spaces Dug 2 | . 2 . Terrain Destroyed 2 | . 2 . Melee 2 | . 2 . Projectile . | . . . AOE . | . . . Terrain Rammed . | . . . Walls Destroyed . | . . . Machines Disabled . | . . . Actions | -11 -10 -10 --------- Run | Yrd Mat Sub Total 989 | 53 933 3 Wait 52 | . 52 . Move 779 | 45 732 2 Hop . | . . . Pick Up 25 | . 25 . Fast Attach 16 | 6 10 . Attach 6 | . 6 . Detach . | . . . Swap 16 | 2 14 . Drop 3 | . 3 . Fire 85 | . 84 1 Melee 4 | . 4 . Ram 1 | . 1 . Kick . | . . . Crush 2 | . 2 . Escape Stasis . | . . . Rewire . | . . . Trap . | . . . Miscellaneous . | . . . Route ------- -11/Scrapyard -10/Materials (discovered 4 exits: [*Mat x2] / [*Min] / [*Sub]) -10/Subcaves History --------- Turn | Location | Event 2 | -11/Scrapyard | Met Revision 17 8 | -11/Scrapyard | Discovered new exit (range 16) 82 | -11/Scrapyard | Entered Materials 308 | -10/Materials | Build established: Mutant 391 | -10/Materials | Discovered new exit (range 7) 721 | -10/Materials | Discovered new exit (range 3) 868 | -10/Materials | Discovered new exit (range 8) 921 | -10/Materials | Core integrity fell below 50% 1067 | -10/Materials | Discovered new exit (range 12) 1282 | -10/Materials | Derelicts attacked the area 1454 | -10/Materials | Lost 3 parts (2n1u) 1615 | -10/Materials | Entered Subcaves 1618 | -10/Subcaves | Ambushed by Subdwellers from Twisted Machinery 1619 | -10/Subcaves | Core integrity fell below 20% 1619 | -10/Subcaves | Destroyed by 9O-0QZ(R) with Subdweller Beam Cannon Last Messages --------------- 01513_ Sensor Array tumbles out of TF Node. 01513_ Signal Interpreter tumbles out of TF Node. 01519_ Acquired Sensor Array. 01535_ Acquired 7 matter. 01542_ R-06 Scavenger collects Sml. Storage Unit. 01545_ R-06 Scavenger collects Lgt. Assault Rifle. 01549_ R-06 Scavenger collects Tractor Beam. 01552_ R-06 Scavenger collects Mining Laser. 01567_ Acquired 10 matter. 01567_ G-47 Trooper destroyed. 01585_ K-01 Serf collects debris. LOCATION=UNKNOWN AMBIENT_HEAT=-10 GOAL=ESCAPE 01618_ 9O-0QZ(R) emerges from the Twisted Machinery. 01618_ Critical hit (Meltdown: +300). Map ----- +----------------------------------------------------+ | ?????????????????????????????????????????????????? | | ?????????????????????????????????????????????????? | | ?????????????????????????????????????????????????? | | ?????????????????????????????????????????????????? | | ?????????????????????????????????????????????????? | | ?????????????????????????????????????????????????? | | ?????????????????????????????????????????????????? | | ?????????????????????????????????????????????????? | | ?????????????????????????????????????????????????? | | ?????????????????????????????????????????????????? | | ?????????????????????????????????????????????????? | | ?????????????????????????????????????????????????? | | ?????????????????????????????????????????????????? | | ?????????????????????????????????????????????????? | | ?????????????????????????????????????????????????? | | ?????????????????????????????????????????????????? | | ?????????????????????????????????????????????????? | | ??????????????????????????"??????????????????????? | | ?????????????????#??????##"??????????????????????? | | ?????????????????# ??? ##""??????????????????????? | | ?????????????????## ???""""??????????????????????? | | ??????????????????% ?##""#??????????????????????? | | ?????????????????##? #""R##?????????????????????? | | ?????????????????# # R ##????????????????????? | | ?????????????????# #######??????????????? | | ??????????????????# @ #??????????????? | | ??????????????????# #??????????????? | | ?????????????# #??????????????? | | ????????????# ## % #??????????????? | | ????????????## $ ##?# #??????????????? | | ?????????????# #????# % ?????????????? | | ???????????? ?????? ???????????? | | ???????????? ??????? ##??????????? | | ?????????????##?????????# %### ## ##???????????? | | ????????????????????????# #??####??#????????????? | | ???????????????????????? ?????????????????????? | | ???????????????????????? ?????????????????????? | | ???????????????????????? ?????????????????????? | | ????????????????????????### ?????????????????????? | | ???????????????????????????#?????????????????????? | | ?????????????????????????????????????????????????? | | ?????????????????????????????????????????????????? | | ?????????????????????????????????????????????????? | | ?????????????????????????????????????????????????? | | ?????????????????????????????????????????????????? | | ?????????????????????????????????????????????????? | | ?????????????????????????????????????????????????? | | ?????????????????????????????????????????????????? | | ?????????????????????????????????????????????????? | | ?????????????????????????????????????????????????? | +----------------------------------------------------+ Best States ------------- Heat Dissipation 35 Energy Generation 10 Energy Capacity 250 Matter Stores 300 Matter Capacity 300 Sight Range 16 Terrain Scan Density 10 Evasion (%) 40 Recoil Reduction 2 Item Schematics ----------------- None Robot Schematics ------------------ None Fabricated ------------ Nothing Repaired ---------- Nothing Alien Tech Used ----------------- None Achievements -------------- None Challenges ------------ None Game ------ Seed EtherialMappingBeamcaster Manual? 0 Play Time 00:15:18 Cumulative 85.9 hours Start 2025.06.24 @ 21:20:13 End 2025.07.03 @ 14:03:45 Sessions 3 Manual Loads 0 Difficulty Rogue Special Mode None Game No. 49 Rogue 43 Adventurer 6 Explorer 0 Win Type - Total 3 Types 3/0/0/0/0/0/0/0/0/0 Lore% 24 Gallery% 41 Achievement% 40 Wizard Run 0 Options --------- Layout 1 ASCII 1 Keyboard 1 Movement Vi Keybinds 0 Fullscreen 1 Font 32/SmallcapsGlow Map View 50x35 Zoom Use 0% Tactical HUD 1 Map Filters NONE Filters NONE Steam 1 RUN: 1dd841d1-7184-42dd-aa1e-c767d2eda8eb